[Event "Titled Tuesday Blitz July 6 2021"]
[White "Viana Da Costa, Fernando"]
[Black "Baradaran, Arman"]
[WhiteFideId "2111900"]
[BlackFideId "880515"]
[WhiteElo "2247"]
[BlackElo "2132"]
[Result "1-0"]
[Round "04"]
[TimeControl "180+1"]
[Date "2021.07.06"]
[WhiteClock "0:01:21"]
[BlackClock "0:00:01"]

1. e4 {[%clk 0:03:00]}  e5 {[%clk 0:02:59]} 2. Nf3 {[%clk 0:03:00]}  Nc6 {[%clk 0:03:00]} 3. d4 {[%clk 0:03:00]}  exd4 {[%clk 0:02:59]} 4. Bc4 {[%clk 0:02:59]}  Nf6 {[%clk 0:02:58]} 5. e5 {[%clk 0:02:59]}  d5 {[%clk 0:02:57]} 6. Bb5 {[%clk 0:02:59]}  Ne4 {[%clk 0:02:52]} 7. Nxd4 {[%clk 0:02:59]}  Bd7 {[%clk 0:02:42]} 8. Bxc6 {[%clk 0:02:58]}  bxc6 {[%clk 0:02:43]} 9. O-O {[%clk 0:02:58]}  Be7 {[%clk 0:02:18]} 10. f3 {[%clk 0:02:58]}  Nc5 {[%clk 0:02:11]} 11. f4 {[%clk 0:02:56]}  Ne4 {[%clk 0:02:10]} 12. Nc3 {[%clk 0:02:52]}  Nxc3 {[%clk 0:02:04]} 13. bxc3 {[%clk 0:02:53]}  c5 {[%clk 0:02:05]} 14. Nb3 {[%clk 0:02:52]}  Bb5 {[%clk 0:01:47]} 15. Rf2 {[%clk 0:02:50]}  a5 {[%clk 0:01:41]} 16. Be3 {[%clk 0:02:48]}  c4 {[%clk 0:01:19]} 17. Nd4 {[%clk 0:02:48]}  Bd7 {[%clk 0:01:20]} 18. f5 {[%clk 0:02:46]}  c5 {[%clk 0:01:20]} 19. Ne2 {[%clk 0:02:29]}  Bc6 {[%clk 0:01:11]} 20. f6 {[%clk 0:01:52]}  gxf6 {[%clk 0:01:09]} 21. exf6 {[%clk 0:01:53]}  Bd6 {[%clk 0:00:43]} 22. Nf4 {[%clk 0:01:39]}  d4 {[%clk 0:00:16]} 23. cxd4 {[%clk 0:01:39]}  Qxf6 {[%clk 0:00:17]} 24. Nh5 {[%clk 0:01:25]}  Qh4 {[%clk 0:00:08]} 25. Nf6+ {[%clk 0:01:23]}  Kf8 {[%clk 0:00:03]} 26. g3 {[%clk 0:01:23]}  Qh3 {[%clk 0:00:01]} 27. Bf4 {[%clk 0:01:21]} 1-0


[Site "https://www.chess.com"]

[Event "Titled Tuesday Blitz July 6 2021"]
[White "Visakh N R"]
[Black "Ozates, Tuna"]
[WhiteFideId "25012223"]
[BlackFideId "6354521"]
[WhiteElo "2428"]
[BlackElo "1872"]
[Result "1-0"]
[Round "04"]
[TimeControl "180+1"]
[Date "2021.07.06"]
[WhiteClock "0:00:26"]
[BlackClock "0:00:17"]

1. e4 {[%clk 0:03:00]}  e5 {[%clk 0:02:58]} 2. Nf3 {[%clk 0:03:00]}  Nc6 {[%clk 0:02:58]} 3. Bb5 {[%clk 0:02:59]}  Nge7 {[%clk 0:02:56]} 4. O-O {[%clk 0:02:59]}  g6 {[%clk 0:02:55]} 5. c3 {[%clk 0:02:58]}  Bg7 {[%clk 0:02:54]} 6. d4 {[%clk 0:02:58]}  exd4 {[%clk 0:02:55]} 7. cxd4 {[%clk 0:02:58]}  a6 {[%clk 0:02:56]} 8. Ba4 {[%clk 0:02:57]}  b5 {[%clk 0:02:56]} 9. Bb3 {[%clk 0:02:55]}  O-O {[%clk 0:02:56]} 10. Nc3 {[%clk 0:02:53]}  d6 {[%clk 0:02:55]} 11. h3 {[%clk 0:02:49]}  Na5 {[%clk 0:02:54]} 12. Bc2 {[%clk 0:02:48]}  c5 {[%clk 0:02:54]} 13. Bg5 {[%clk 0:02:38]}  h6 {[%clk 0:02:52]} 14. Bh4 {[%clk 0:02:30]}  g5 {[%clk 0:02:51]} 15. Bg3 {[%clk 0:02:25]}  Nc4 {[%clk 0:02:50]} 16. b3 {[%clk 0:02:23]}  Na3 {[%clk 0:02:44]} 17. Rc1 {[%clk 0:02:21]}  Nc6 {[%clk 0:02:36]} 18. Ne2 {[%clk 0:02:07]}  Nxc2 {[%clk 0:02:28]} 19. Qxc2 {[%clk 0:01:37]}  Nxd4 {[%clk 0:02:12]} 20. Nexd4 {[%clk 0:01:37]}  cxd4 {[%clk 0:02:13]} 21. Rfd1 {[%clk 0:01:38]}  f5 {[%clk 0:02:11]} 22. exf5 {[%clk 0:01:30]}  Bxf5 {[%clk 0:02:10]} 23. Qc6 {[%clk 0:01:29]}  Rc8 {[%clk 0:01:59]} 24. Qd5+ {[%clk 0:01:27]}  Kh8 {[%clk 0:02:00]} 25. Nxd4 {[%clk 0:01:25]}  Rxc1 {[%clk 0:01:58]} 26. Rxc1 {[%clk 0:01:26]}  Qf6 {[%clk 0:01:32]} 27. Nxf5 {[%clk 0:01:07]}  Qxf5 {[%clk 0:01:31]} 28. Qxf5 {[%clk 0:01:01]}  Rxf5 {[%clk 0:01:32]} 29. Bxd6 {[%clk 0:01:01]}  Rd5 {[%clk 0:01:32]} 30. Bb4 {[%clk 0:01:01]}  Kh7 {[%clk 0:01:23]} 31. Kf1 {[%clk 0:01:00]}  Kg6 {[%clk 0:01:19]} 32. Rc6+ {[%clk 0:01:00]}  Kf5 {[%clk 0:01:19]} 33. Rxa6 {[%clk 0:00:58]}  Rd1+ {[%clk 0:01:19]} 34. Ke2 {[%clk 0:00:58]}  Rb1 {[%clk 0:01:18]} 35. Ra5 {[%clk 0:00:55]}  Ke4 {[%clk 0:01:04]} 36. f3+ {[%clk 0:00:49]}  Kd4 {[%clk 0:00:57]} 37. Rxb5 {[%clk 0:00:48]}  Rb2+ {[%clk 0:00:57]} 38. Kf1 {[%clk 0:00:48]}  Rxa2 {[%clk 0:00:54]} 39. Be1 {[%clk 0:00:46]}  Ra1 {[%clk 0:00:50]} 40. Kf2 {[%clk 0:00:42]}  Kd3 {[%clk 0:00:50]} 41. Rd5+ {[%clk 0:00:37]}  Bd4+ {[%clk 0:00:49]} 42. Kf1 {[%clk 0:00:37]}  Ke3 {[%clk 0:00:48]} 43. Rd8 {[%clk 0:00:34]}  Rb1 {[%clk 0:00:41]} 44. Re8+ {[%clk 0:00:33]}  Kd3 {[%clk 0:00:41]} 45. Rd8 {[%clk 0:00:33]}  Rxb3 {[%clk 0:00:36]} 46. h4 {[%clk 0:00:32]}  Rb1 {[%clk 0:00:35]} 47. hxg5 {[%clk 0:00:30]}  hxg5 {[%clk 0:00:36]} 48. Rd5 {[%clk 0:00:30]}  Kc4 {[%clk 0:00:33]} 49. Rxg5 {[%clk 0:00:29]}  Bc3 {[%clk 0:00:34]} 50. Rg4+ {[%clk 0:00:29]}  Kd3 {[%clk 0:00:33]} 51. Re4 {[%clk 0:00:30]}  Bd4 {[%clk 0:00:26]} 52. Re2 {[%clk 0:00:29]}  Rd1 {[%clk 0:00:23]} 53. g4 {[%clk 0:00:27]}  Be3 {[%clk 0:00:23]} 54. Ra2 {[%clk 0:00:27]}  Bd4 {[%clk 0:00:19]} 55. Ra3+ {[%clk 0:00:27]}  Kc4 {[%clk 0:00:18]} 56. Ke2 {[%clk 0:00:26]}  Rb1 {[%clk 0:00:19]} 57. Bd2 {[%clk 0:00:26]}  Rg1 {[%clk 0:00:19]} 58. Ra4+ {[%clk 0:00:26]}  Kc5 {[%clk 0:00:17]} 59. Rxd4 {[%clk 0:00:27]}  Rg2+ {[%clk 0:00:17]} 60. Kd3 {[%clk 0:00:26]} 1-0


[Site "https://www.chess.com"]

[Event "Titled Tuesday Blitz July 6 2021"]
[White "Vlassov, Nikolai"]
[Black "Nabaty, Tamir"]
[WhiteFideId "4103360"]
[BlackFideId "2809052"]
[WhiteElo "2407"]
[BlackElo "2627"]
[Result "0-1"]
[Round "04"]
[TimeControl "180+1"]
[Date "2021.07.06"]
[WhiteClock "0:00:14"]
[BlackClock "0:01:18"]

1. e4 {[%clk 0:02:51]}  c5 {[%clk 0:02:59]} 2. c3 {[%clk 0:02:51]}  e6 {[%clk 0:02:57]} 3. d4 {[%clk 0:02:51]}  cxd4 {[%clk 0:02:58]} 4. cxd4 {[%clk 0:02:50]}  d5 {[%clk 0:02:59]} 5. e5 {[%clk 0:02:47]}  Nc6 {[%clk 0:02:57]} 6. Nc3 {[%clk 0:02:47]}  Nge7 {[%clk 0:02:58]} 7. Nf3 {[%clk 0:02:46]}  Nf5 {[%clk 0:02:56]} 8. Be3 {[%clk 0:02:45]}  Qb6 {[%clk 0:02:54]} 9. Qd2 {[%clk 0:02:44]}  Bd7 {[%clk 0:02:51]} 10. Be2 {[%clk 0:02:27]}  Be7 {[%clk 0:02:47]} 11. O-O {[%clk 0:02:27]}  Rc8 {[%clk 0:02:48]} 12. Rac1 {[%clk 0:02:25]}  O-O {[%clk 0:02:47]} 13. Bd3 {[%clk 0:02:20]}  Nxe3 {[%clk 0:02:40]} 14. fxe3 {[%clk 0:02:20]}  g6 {[%clk 0:02:39]} 15. Rf2 {[%clk 0:02:14]}  f6 {[%clk 0:02:38]} 16. exf6 {[%clk 0:02:13]}  Rxf6 {[%clk 0:02:36]} 17. Rcf1 {[%clk 0:02:13]}  Rcf8 {[%clk 0:02:35]} 18. h4 {[%clk 0:02:07]}  Bd6 {[%clk 0:02:29]} 19. Ne2 {[%clk 0:02:01]}  Qa5 {[%clk 0:02:22]} 20. Qxa5 {[%clk 0:01:56]}  Nxa5 {[%clk 0:02:23]} 21. Ne5 {[%clk 0:01:50]}  Bxe5 {[%clk 0:02:21]} 22. dxe5 {[%clk 0:01:49]}  Rxf2 {[%clk 0:02:21]} 23. Rxf2 {[%clk 0:01:49]}  Rxf2 {[%clk 0:02:16]} 24. Kxf2 {[%clk 0:01:50]}  Nc6 {[%clk 0:02:16]} 25. e4 {[%clk 0:01:26]}  Nxe5 {[%clk 0:02:14]} 26. Bc2 {[%clk 0:01:26]}  Kf7 {[%clk 0:02:07]} 27. exd5 {[%clk 0:01:26]}  exd5 {[%clk 0:02:07]} 28. Bb3 {[%clk 0:01:21]}  Nc4 {[%clk 0:01:49]} 29. Bxc4 {[%clk 0:01:04]}  dxc4 {[%clk 0:01:49]} 30. Ke3 {[%clk 0:01:05]}  Kf6 {[%clk 0:01:26]} 31. Kd4 {[%clk 0:01:00]}  Kf5 {[%clk 0:01:26]} 32. Kxc4 {[%clk 0:00:56]}  Kg4 {[%clk 0:01:26]} 33. Kd5 {[%clk 0:00:49]}  Bc6+ {[%clk 0:01:23]} 34. Kd6 {[%clk 0:00:37]}  Bxg2 {[%clk 0:01:24]} 35. Kc7 {[%clk 0:00:14]}  Kxh4 {[%clk 0:01:23]} 36. Nf4 {[%clk 0:00:14]}  Bc6 {[%clk 0:01:19]} 37. Ne6 {[%clk 0:00:14]}  g5 {[%clk 0:01:18]} 0-1


[Site "https://www.chess.com"]

[Event "Titled Tuesday Blitz July 6 2021"]
[White "Vyatkin, Dmitry"]
[Black "Maly, Alexey"]
[WhiteFideId "4171900"]
[BlackFideId "14103184"]
[WhiteElo "2279"]
[BlackElo "2285"]
[Result "0-1"]
[Round "04"]
[TimeControl "180+1"]
[Date "2021.07.06"]
[WhiteClock "0:00:03"]
[BlackClock "0:00:12"]

1. d4 {[%clk 0:02:59]}  d5 {[%clk 0:02:59]} 2. c4 {[%clk 0:02:59]}  dxc4 {[%clk 0:03:00]} 3. e3 {[%clk 0:02:58]}  Nf6 {[%clk 0:03:00]} 4. Bxc4 {[%clk 0:02:56]}  e6 {[%clk 0:02:58]} 5. Nf3 {[%clk 0:02:55]}  a6 {[%clk 0:02:59]} 6. a4 {[%clk 0:02:50]}  c5 {[%clk 0:02:58]} 7. O-O {[%clk 0:02:50]}  Nc6 {[%clk 0:02:58]} 8. Nc3 {[%clk 0:02:49]}  cxd4 {[%clk 0:02:58]} 9. exd4 {[%clk 0:02:49]}  Nb4 {[%clk 0:02:58]} 10. Re1 {[%clk 0:02:47]}  Be7 {[%clk 0:02:57]} 11. Bg5 {[%clk 0:02:45]}  O-O {[%clk 0:02:56]} 12. Qd2 {[%clk 0:02:45]}  b6 {[%clk 0:02:54]} 13. Rad1 {[%clk 0:02:35]}  Bb7 {[%clk 0:02:54]} 14. Ne5 {[%clk 0:02:35]}  Nfd5 {[%clk 0:02:48]} 15. Ne4 {[%clk 0:02:20]}  f6 {[%clk 0:02:43]} 16. Nf3 {[%clk 0:02:04]}  fxg5 {[%clk 0:02:42]} 17. Nexg5 {[%clk 0:02:04]}  Bxg5 {[%clk 0:02:34]} 18. Nxg5 {[%clk 0:02:03]}  Qc8 {[%clk 0:01:48]} 19. Bb3 {[%clk 0:01:51]}  Rf6 {[%clk 0:01:41]} 20. Rc1 {[%clk 0:01:09]}  Qd7 {[%clk 0:01:41]} 21. Nxe6 {[%clk 0:01:09]}  Rxe6 {[%clk 0:01:15]} 22. Rxe6 {[%clk 0:01:09]}  Qxe6 {[%clk 0:01:16]} 23. Qxb4 {[%clk 0:01:09]}  Nxb4 {[%clk 0:01:06]} 24. Bxe6+ {[%clk 0:01:09]}  Kh8 {[%clk 0:01:02]} 25. Rc7 {[%clk 0:01:09]}  Bd5 {[%clk 0:01:01]} 26. Bxd5 {[%clk 0:00:47]}  Nxd5 {[%clk 0:01:02]} 27. Rd7 {[%clk 0:00:48]}  Nf6 {[%clk 0:00:59]} 28. Rd6 {[%clk 0:00:48]}  b5 {[%clk 0:00:59]} 29. a5 {[%clk 0:00:47]}  h6 {[%clk 0:00:53]} 30. f3 {[%clk 0:00:47]}  Kh7 {[%clk 0:00:52]} 31. g4 {[%clk 0:00:46]}  Kg6 {[%clk 0:00:51]} 32. h4 {[%clk 0:00:47]}  Rc8 {[%clk 0:00:43]} 33. Rxa6 {[%clk 0:00:45]}  Rc2 {[%clk 0:00:40]} 34. b3 {[%clk 0:00:37]}  Rb2 {[%clk 0:00:39]} 35. Rb6 {[%clk 0:00:35]}  Rxb3 {[%clk 0:00:39]} 36. Kf2 {[%clk 0:00:34]}  b4 {[%clk 0:00:34]} 37. a6 {[%clk 0:00:33]}  Ra3 {[%clk 0:00:33]} 38. Rxb4 {[%clk 0:00:24]}  Rxa6 {[%clk 0:00:34]} 39. Rb5 {[%clk 0:00:23]}  Rd6 {[%clk 0:00:32]} 40. Ke3 {[%clk 0:00:19]}  Nd5+ {[%clk 0:00:32]} 41. Kd3 {[%clk 0:00:18]}  Kf6 {[%clk 0:00:32]} 42. Ra5 {[%clk 0:00:17]}  g5 {[%clk 0:00:28]} 43. h5 {[%clk 0:00:13]}  Nf4+ {[%clk 0:00:25]} 44. Kc4 {[%clk 0:00:09]}  Rc6+ {[%clk 0:00:21]} 45. Rc5 {[%clk 0:00:09]}  Rd6 {[%clk 0:00:13]} 46. Rc8 {[%clk 0:00:09]}  Ne6 {[%clk 0:00:12]} 47. d5 {[%clk 0:00:07]}  Nf4 {[%clk 0:00:12]} 48. Rc5 {[%clk 0:00:03]}  Ke5 {[%clk 0:00:12]} 0-1


[Site "https://www.chess.com"]

[Event "Titled Tuesday Blitz July 6 2021"]
[White "Wagh Suyog"]
[Black "Kamsky, Gata"]
[WhiteFideId "25071688"]
[BlackFideId "2000024"]
[WhiteElo "2219"]
[BlackElo "2644"]
[Result "1/2-1/2"]
[Round "04"]
[TimeControl "180+1"]
[Date "2021.07.06"]
[WhiteClock "0:00:04"]
[BlackClock "0:00:19"]

1. d4 {[%clk 0:03:00]}  d5 {[%clk 0:02:58]} 2. Bf4 {[%clk 0:03:01]}  c5 {[%clk 0:02:58]} 3. e3 {[%clk 0:03:00]}  Nc6 {[%clk 0:02:58]} 4. c3 {[%clk 0:03:00]}  Nf6 {[%clk 0:02:55]} 5. Nd2 {[%clk 0:02:59]}  cxd4 {[%clk 0:02:52]} 6. exd4 {[%clk 0:02:57]}  Bf5 {[%clk 0:02:52]} 7. Qb3 {[%clk 0:02:52]}  Qc8 {[%clk 0:02:52]} 8. Ngf3 {[%clk 0:02:50]}  e6 {[%clk 0:02:51]} 9. Be2 {[%clk 0:02:50]}  Be7 {[%clk 0:02:48]} 10. O-O {[%clk 0:02:47]}  O-O {[%clk 0:02:48]} 11. Rfe1 {[%clk 0:02:45]}  h6 {[%clk 0:02:46]} 12. Nf1 {[%clk 0:02:44]}  Ne4 {[%clk 0:02:40]} 13. Ng3 {[%clk 0:02:36]}  Bg6 {[%clk 0:02:36]} 14. Ne5 {[%clk 0:02:30]}  Nxe5 {[%clk 0:02:35]} 15. Bxe5 {[%clk 0:02:31]}  Nd2 {[%clk 0:02:22]} 16. Qa4 {[%clk 0:02:14]}  Nc4 {[%clk 0:02:20]} 17. Bxc4 {[%clk 0:02:09]}  Qxc4 {[%clk 0:02:18]} 18. Qxc4 {[%clk 0:02:04]}  dxc4 {[%clk 0:02:18]} 19. d5 {[%clk 0:02:04]}  f6 {[%clk 0:01:40]} 20. Bc7 {[%clk 0:02:03]}  e5 {[%clk 0:01:35]} 21. d6 {[%clk 0:01:21]}  Bd8 {[%clk 0:01:33]} 22. f4 {[%clk 0:01:21]}  Bxc7 {[%clk 0:00:55]} 23. dxc7 {[%clk 0:01:21]}  Rac8 {[%clk 0:00:54]} 24. fxe5 {[%clk 0:01:20]}  Rxc7 {[%clk 0:00:54]} 25. exf6 {[%clk 0:00:44]}  Rxf6 {[%clk 0:00:54]} 26. Ne2 {[%clk 0:00:44]}  Rb6 {[%clk 0:00:36]} 27. Nf4 {[%clk 0:00:43]}  Bf7 {[%clk 0:00:35]} 28. Re2 {[%clk 0:00:34]}  g5 {[%clk 0:00:34]} 29. Nh3 {[%clk 0:00:34]}  Rd7 {[%clk 0:00:33]} 30. Nf2 {[%clk 0:00:32]}  Kg7 {[%clk 0:00:32]} 31. Ne4 {[%clk 0:00:27]}  Re6 {[%clk 0:00:28]} 32. Rae1 {[%clk 0:00:26]}  Re5 {[%clk 0:00:21]} 33. Kf2 {[%clk 0:00:20]}  Bg6 {[%clk 0:00:21]} 34. Ng3 {[%clk 0:00:19]}  Rf7+ {[%clk 0:00:21]} 35. Kg1 {[%clk 0:00:19]}  Rxe2 {[%clk 0:00:21]} 36. Rxe2 {[%clk 0:00:20]}  Rd7 {[%clk 0:00:20]} 37. Kf2 {[%clk 0:00:19]}  Kf6 {[%clk 0:00:20]} 38. Ne4+ {[%clk 0:00:18]}  Bxe4 {[%clk 0:00:20]} 39. Rxe4 {[%clk 0:00:18]}  Rd2+ {[%clk 0:00:20]} 40. Re2 {[%clk 0:00:18]}  Rxe2+ {[%clk 0:00:21]} 41. Kxe2 {[%clk 0:00:19]}  h5 {[%clk 0:00:21]} 42. Ke3 {[%clk 0:00:17]}  Ke5 {[%clk 0:00:21]} 43. h3 {[%clk 0:00:13]}  b5 {[%clk 0:00:21]} 44. g3 {[%clk 0:00:05]}  a6 {[%clk 0:00:20]} 45. g4 {[%clk 0:00:02]}  h4 {[%clk 0:00:19]} 46. Kf3 {[%clk 0:00:02]}  Kd5 {[%clk 0:00:19]} 47. Ke3 {[%clk 0:00:02]}  a5 {[%clk 0:00:19]} 48. Kf3 {[%clk 0:00:02]}  Ke5 {[%clk 0:00:20]} 49. Ke3 {[%clk 0:00:03]}  Kd5 {[%clk 0:00:19]} 50. Kf3 {[%clk 0:00:03]}  Ke5 {[%clk 0:00:19]} 51. Ke3 {[%clk 0:00:04]}  Kd5 {[%clk 0:00:19]} 1/2-1/2


[Site "https://www.chess.com"]

[Event "Titled Tuesday Blitz July 6 2021"]
[White "Yanchenko, Roman"]
[Black "Prraneeth Vuppala"]
[WhiteFideId "4137329"]
[BlackFideId "46622373"]
[WhiteElo "2514"]
[BlackElo "1759"]
[Result "1-0"]
[Round "04"]
[TimeControl "180+1"]
[Date "2021.07.06"]
[WhiteClock "0:00:10"]
[BlackClock "0:00:01"]

1. d4 {[%clk 0:03:00]}  Nf6 {[%clk 0:02:59]} 2. c4 {[%clk 0:03:01]}  g6 {[%clk 0:03:00]} 3. Nf3 {[%clk 0:03:01]}  Bg7 {[%clk 0:02:59]} 4. Nc3 {[%clk 0:03:02]}  d5 {[%clk 0:02:59]} 5. Bf4 {[%clk 0:03:02]}  O-O {[%clk 0:02:58]} 6. e3 {[%clk 0:03:02]}  c5 {[%clk 0:02:49]} 7. dxc5 {[%clk 0:03:02]}  Qa5 {[%clk 0:02:49]} 8. Be5 {[%clk 0:03:02]}  dxc4 {[%clk 0:02:26]} 9. Bxc4 {[%clk 0:03:00]}  Nc6 {[%clk 0:02:26]} 10. O-O {[%clk 0:02:42]}  Nxe5 {[%clk 0:02:25]} 11. Nxe5 {[%clk 0:02:41]}  Qxc5 {[%clk 0:02:24]} 12. Qd4 {[%clk 0:02:41]}  Qxd4 {[%clk 0:02:22]} 13. exd4 {[%clk 0:02:42]}  Nd7 {[%clk 0:02:07]} 14. f4 {[%clk 0:02:41]}  Nb6 {[%clk 0:02:02]} 15. Bb3 {[%clk 0:02:40]}  Bf5 {[%clk 0:01:45]} 16. Rad1 {[%clk 0:02:34]}  Rac8 {[%clk 0:01:35]} 17. h3 {[%clk 0:02:32]}  h5 {[%clk 0:01:32]} 18. Rfe1 {[%clk 0:02:29]}  h4 {[%clk 0:01:14]} 19. Nd5 {[%clk 0:01:47]}  Nxd5 {[%clk 0:01:09]} 20. Bxd5 {[%clk 0:01:47]}  Rc7 {[%clk 0:01:07]} 21. Rc1 {[%clk 0:01:45]}  Bxe5 {[%clk 0:01:00]} 22. dxe5 {[%clk 0:01:45]}  Rfc8 {[%clk 0:00:59]} 23. Rxc7 {[%clk 0:01:44]}  Rxc7 {[%clk 0:01:00]} 24. a3 {[%clk 0:01:42]}  Kg7 {[%clk 0:00:55]} 25. Re3 {[%clk 0:01:37]}  b6 {[%clk 0:00:53]} 26. Rc3 {[%clk 0:01:32]}  Rd7 {[%clk 0:00:45]} 27. Bf3 {[%clk 0:01:30]}  Rd2 {[%clk 0:00:45]} 28. Rc7 {[%clk 0:01:18]}  e6 {[%clk 0:00:40]} 29. b4 {[%clk 0:01:15]}  a5 {[%clk 0:00:20]} 30. Rb7 {[%clk 0:00:48]}  Ra2 {[%clk 0:00:19]} 31. b5 {[%clk 0:00:48]}  Rxa3 {[%clk 0:00:18]} 32. Rxb6 {[%clk 0:00:49]}  Rb3 {[%clk 0:00:18]} 33. Rb8 {[%clk 0:00:47]}  a4 {[%clk 0:00:18]} 34. b6 {[%clk 0:00:47]}  a3 {[%clk 0:00:16]} 35. b7 {[%clk 0:00:48]}  a2 {[%clk 0:00:14]} 36. Ra8 {[%clk 0:00:48]}  Bb1 {[%clk 0:00:14]} 37. Kf2 {[%clk 0:00:44]}  g5 {[%clk 0:00:14]} 38. fxg5 {[%clk 0:00:39]}  Kg6 {[%clk 0:00:14]} 39. Ra5 {[%clk 0:00:15]}  Kxg5 {[%clk 0:00:13]} 40. Ke2 {[%clk 0:00:15]}  Kf4 {[%clk 0:00:11]} 41. Kd2 {[%clk 0:00:15]}  Be4 {[%clk 0:00:08]} 42. Ra4 {[%clk 0:00:15]}  a1=Q {[%clk 0:00:08]} 43. Rxa1 {[%clk 0:00:13]}  Bxf3 {[%clk 0:00:09]} 44. Rf1 {[%clk 0:00:13]}  Rxb7 {[%clk 0:00:08]} 45. Rxf3+ {[%clk 0:00:13]}  Kxe5 {[%clk 0:00:08]} 46. Ke2 {[%clk 0:00:13]}  f5 {[%clk 0:00:09]} 47. Re3+ {[%clk 0:00:13]}  Kf6 {[%clk 0:00:09]} 48. Kf2 {[%clk 0:00:13]}  f4 {[%clk 0:00:09]} 49. Re4 {[%clk 0:00:13]}  e5 {[%clk 0:00:09]} 50. Ra4 {[%clk 0:00:13]}  Kf5 {[%clk 0:00:09]} 51. Ra2 {[%clk 0:00:13]}  Ke4 {[%clk 0:00:09]} 52. Re2+ {[%clk 0:00:13]}  Kf5 {[%clk 0:00:09]} 53. Ra2 {[%clk 0:00:14]}  Rd7 {[%clk 0:00:09]} 54. Re2 {[%clk 0:00:14]}  Rd5 {[%clk 0:00:09]} 55. Rc2 {[%clk 0:00:14]}  e4 {[%clk 0:00:09]} 56. Rb2 {[%clk 0:00:15]}  e3+ {[%clk 0:00:09]} 57. Kf3 {[%clk 0:00:15]}  Ke5 {[%clk 0:00:09]} 58. Rb4 {[%clk 0:00:15]}  Rd2 {[%clk 0:00:07]} 59. Re4+ {[%clk 0:00:15]}  Kd5 {[%clk 0:00:08]} 60. Kxf4 {[%clk 0:00:15]}  e2 {[%clk 0:00:07]} 61. Re5+ {[%clk 0:00:15]}  Kd4 {[%clk 0:00:07]} 62. Re8 {[%clk 0:00:15]}  Kd3 {[%clk 0:00:05]} 63. Kf3 {[%clk 0:00:15]}  Rc2 {[%clk 0:00:03]} 64. Re3+ {[%clk 0:00:14]}  Kd4 {[%clk 0:00:02]} 65. Re4+ {[%clk 0:00:15]}  Kd3 {[%clk 0:00:01]} 66. Re3+ {[%clk 0:00:15]}  Kd4 {[%clk 0:00:02]} 67. Re6 {[%clk 0:00:14]}  Rc3+ {[%clk 0:00:01]} 68. Kf2 {[%clk 0:00:13]}  Rg3 {[%clk 0:00:02]} 69. Rxe2 {[%clk 0:00:12]}  Kd5 {[%clk 0:00:03]} 70. Re8 {[%clk 0:00:13]}  Rg5 {[%clk 0:00:03]} 71. Rh8 {[%clk 0:00:13]}  Rf5+ {[%clk 0:00:04]} 72. Ke3 {[%clk 0:00:13]}  Rg5 {[%clk 0:00:04]} 73. Kf3 {[%clk 0:00:13]}  Rf5+ {[%clk 0:00:05]} 74. Kg4 {[%clk 0:00:13]}  Rf2 {[%clk 0:00:05]} 75. Kxh4 {[%clk 0:00:11]}  Rxg2 {[%clk 0:00:05]} 76. Re8 {[%clk 0:00:12]}  Kd6 {[%clk 0:00:05]} 77. Kh5 {[%clk 0:00:12]}  Kd7 {[%clk 0:00:05]} 78. Re3 {[%clk 0:00:12]}  Rg7 {[%clk 0:00:05]} 79. h4 {[%clk 0:00:13]}  Rg8 {[%clk 0:00:06]} 80. Kh6 {[%clk 0:00:12]}  Rh8+ {[%clk 0:00:06]} 81. Kg5 {[%clk 0:00:12]}  Rg8+ {[%clk 0:00:06]} 82. Kf6 {[%clk 0:00:12]}  Rh8 {[%clk 0:00:07]} 83. Re4 {[%clk 0:00:12]}  Rh6+ {[%clk 0:00:04]} 84. Kg7 {[%clk 0:00:12]}  Rh5 {[%clk 0:00:04]} 85. Kg6 {[%clk 0:00:11]}  Rh8 {[%clk 0:00:04]} 86. h5 {[%clk 0:00:11]}  Rg8+ {[%clk 0:00:04]} 87. Kf7 {[%clk 0:00:12]}  Rh8 {[%clk 0:00:04]} 88. Rd4+ {[%clk 0:00:12]}  Kc6 {[%clk 0:00:04]} 89. Kg6 {[%clk 0:00:11]}  Kc5 {[%clk 0:00:02]} 90. Rh4 {[%clk 0:00:10]}  Kd6 {[%clk 0:00:01]} 91. h6 {[%clk 0:00:10]} 1-0


[Site "https://www.chess.com"]

[Event "Titled Tuesday Blitz July 6 2021"]
[White "Yang, Kaiqi"]
[Black "Roman, Rodrigo"]
[WhiteFideId "8604398"]
[BlackFideId "3701220"]
[WhiteElo "2373"]
[BlackElo "2043"]
[Result "0-1"]
[Round "04"]
[TimeControl "180+1"]
[Date "2021.07.06"]
[WhiteClock "0:00:03"]
[BlackClock "0:00:42"]

1. Nf3 {[%clk 0:03:00]}  Nf6 {[%clk 0:02:53]} 2. g3 {[%clk 0:03:00]}  g6 {[%clk 0:02:53]} 3. Bg2 {[%clk 0:03:01]}  Bg7 {[%clk 0:02:54]} 4. O-O {[%clk 0:03:01]}  O-O {[%clk 0:02:54]} 5. c4 {[%clk 0:02:56]}  c6 {[%clk 0:02:51]} 6. d4 {[%clk 0:02:37]}  d5 {[%clk 0:02:51]} 7. cxd5 {[%clk 0:02:30]}  cxd5 {[%clk 0:02:52]} 8. Nc3 {[%clk 0:02:27]}  Nc6 {[%clk 0:02:52]} 9. Ne5 {[%clk 0:02:26]}  Bf5 {[%clk 0:02:50]} 10. Nxc6 {[%clk 0:02:25]}  bxc6 {[%clk 0:02:51]} 11. Bf4 {[%clk 0:02:22]}  Nd7 {[%clk 0:02:51]} 12. Rc1 {[%clk 0:02:01]}  e5 {[%clk 0:02:48]} 13. dxe5 {[%clk 0:02:01]}  Nxe5 {[%clk 0:02:49]} 14. Na4 {[%clk 0:01:52]}  Rc8 {[%clk 0:02:43]} 15. Be3 {[%clk 0:01:40]}  Re8 {[%clk 0:02:37]} 16. Bd4 {[%clk 0:01:37]}  Nd3 {[%clk 0:02:31]} 17. exd3 {[%clk 0:01:04]}  Bxd4 {[%clk 0:02:29]} 18. Qd2 {[%clk 0:01:02]}  Bg4 {[%clk 0:02:11]} 19. Rfe1 {[%clk 0:01:01]}  Qf6 {[%clk 0:02:07]} 20. Nc3 {[%clk 0:00:41]}  Rb8 {[%clk 0:01:43]} 21. Rxe8+ {[%clk 0:00:34]}  Rxe8 {[%clk 0:01:44]} 22. h3 {[%clk 0:00:25]}  Bd7 {[%clk 0:01:40]} 23. b3 {[%clk 0:00:20]}  h5 {[%clk 0:01:38]} 24. h4 {[%clk 0:00:18]}  Bg4 {[%clk 0:01:33]} 25. Rf1 {[%clk 0:00:17]}  Qd6 {[%clk 0:01:29]} 26. Nd1 {[%clk 0:00:16]}  Qxg3 {[%clk 0:01:25]} 27. Qg5 {[%clk 0:00:10]}  Qe5 {[%clk 0:01:12]} 28. Qxe5 {[%clk 0:00:09]}  Rxe5 {[%clk 0:01:13]} 29. Ne3 {[%clk 0:00:07]}  Bxe3 {[%clk 0:01:12]} 30. fxe3 {[%clk 0:00:07]}  Rxe3 {[%clk 0:01:13]} 31. Rc1 {[%clk 0:00:07]}  Bd7 {[%clk 0:01:10]} 32. Bf1 {[%clk 0:00:03]}  Kf8 {[%clk 0:01:08]} 33. Kf2 {[%clk 0:00:03]}  Re5 {[%clk 0:01:04]} 34. Rc5 {[%clk 0:00:03]}  Rf5+ {[%clk 0:01:00]} 35. Ke1 {[%clk 0:00:03]}  Rf4 {[%clk 0:01:01]} 36. Ra5 {[%clk 0:00:02]}  Rxh4 {[%clk 0:01:00]} 37. Rxa7 {[%clk 0:00:02]}  Bf5 {[%clk 0:01:00]} 38. a4 {[%clk 0:00:02]}  Rh1 {[%clk 0:00:59]} 39. Kf2 {[%clk 0:00:03]}  Rh2+ {[%clk 0:00:59]} 40. Kg1 {[%clk 0:00:03]}  Rb2 {[%clk 0:00:57]} 41. Rb7 {[%clk 0:00:02]}  Ra2 {[%clk 0:00:57]} 42. Rb6 {[%clk 0:00:02]}  c5 {[%clk 0:00:56]} 43. Rc6 {[%clk 0:00:02]}  Ra1 {[%clk 0:00:51]} 44. Rxc5 {[%clk 0:00:02]}  Bxd3 {[%clk 0:00:50]} 45. Rxd5 {[%clk 0:00:03]}  Bxf1 {[%clk 0:00:48]} 46. Kf2 {[%clk 0:00:03]}  Bh3 {[%clk 0:00:46]} 47. a5 {[%clk 0:00:03]}  Be6 {[%clk 0:00:45]} 48. Rb5 {[%clk 0:00:03]}  h4 {[%clk 0:00:44]} 49. b4 {[%clk 0:00:03]}  h3 {[%clk 0:00:45]} 50. Kg3 {[%clk 0:00:03]}  Ra3+ {[%clk 0:00:44]} 51. Kh2 {[%clk 0:00:04]}  Ra2+ {[%clk 0:00:44]} 52. Kg3 {[%clk 0:00:04]}  Rg2+ {[%clk 0:00:44]} 53. Kf3 {[%clk 0:00:05]}  Ra2 {[%clk 0:00:42]} 54. Rb6 {[%clk 0:00:03]}  h2 {[%clk 0:00:42]} 0-1


[Site "https://www.chess.com"]